fUSD/lending_fUSD_20250514
["ID","MTS","AMOUNT","RATE_DAILY","PERIOD"]
[361085501,1747242646768,-307.93762868,0.00010958,2]
[361085502,1747242646777,-312.43018392,0.00010958,2]
[361085503,1747242646787,-420.35568803,0.00010958,2]
[361085504,1747242646795,-400.0,0.00010958,2]
[361085505,1747242646804,-203.56734242,0.00010958,2]
[361085506,1747242646814,-652.95,0.00010958,2]
[361085507,1747242646823,-536.06,0.00010958,2]
[361085508,1747242646832,-400.0,0.00010958,2]
[361085509,1747242646842,-552.71,0.00010958,2]
[361085510,1747242646851,-653.4,0.00010958,2]
[361085511,1747242646860,-604.34,0.00010958,2]
[361085512,1747242646869,-400.0,0.00010958,2]
[361085513,1747242646878,-400.0,0.00010958,2]
[361085514,1747242646887,-461.44,0.00010958,2]
[361085515,1747242646896,-400.0,0.00010958,2]
[361085516,1747242646905,-554.5,0.00010958,2]
[361085517,1747242646914,-400.0,0.00010958,2]
[361085518,1747242646924,-400.0,0.00010958,2]
[361085519,1747242646933,-400.0,0.00010958,2]
[361085520,1747242646942,-364.45550203,0.00010958,2]
[361085521,1747242646954,-225.34449797,0.00010958,2]
[361085522,1747242646963,-400.0,0.00010958,2]
[361085523,1747242646972,-527.2,0.00010958,2]
[361085524,1747242646982,-526.4,0.00010958,2]
[361085525,1747242646991,-400.0,0.00010958,2]
[361085526,1747242647001,-400.0,0.00010958,2]
[361085527,1747242647010,-633.38,0.00010958,2]
[361085528,1747242647019,-400.0,0.00010958,2]
[361085529,1747242647029,-400.0,0.00010958,2]
[361085530,1747242647038,-496.74,0.00010958,2]
[361085531,1747242647047,-418.53,0.00010958,2]
[361085532,1747242647056,-197.554189,0.00010958,2]
[361085533,1747242647065,-400.0,0.00010958,2]
[361085534,1747242647075,-400.0,0.00010958,2]
[361085535,1747242647084,-400.0,0.00010958,2]
[361085536,1747242647093,-400.0,0.00010958,2]
[361085537,1747242647103,-400.0,0.00010958,2]
[361085538,1747242647112,-506.49,0.00010958,2]
[361085539,1747242647121,-548.31,0.00010958,2]
[361085540,1747242647130,-400.0,0.00010958,2]
[361085541,1747242647139,-204.78662724,0.00010958,2]
[361085542,1747242647148,-400.0,0.00010958,2]
[361085543,1747242647157,-400.0,0.00010958,2]
[361085544,1747242647167,-590.26,0.00010958,2]
[361085545,1747242647178,-630.8,0.00010958,2]
[361085546,1747242647187,-400.0,0.00010958,2]
[361085547,1747242647197,-400.0,0.00010958,2]
[361085548,1747242647207,-438.48,0.00010958,2]
[361085549,1747242647217,-400.0,0.00010958,2]
[361085550,1747242647226,-400.0,0.00010958,2]
[361085551,1747242647235,-400.0,0.00010958,2]
[361085552,1747242647244,-535.89,0.00010958,2]
[361085553,1747242647253,-400.0,0.00010958,2]
[361085554,1747242647262,-400.0,0.00010958,2]
[361085555,1747242647272,-400.0,0.00010958,2]
[361085556,1747242647281,-400.0,0.00010958,2]
[361085557,1747242647290,-408.9,0.00010958,2]
[361085558,1747242647299,-609.56,0.00010958,2]
[361085559,1747242647308,-4551.0,0.00010958,2]
[361085560,1747242647317,-400.0,0.00010958,2]
[361085561,1747242647327,-962.41,0.00010958,2]
[361085562,1747242647336,-1002.4,0.00010958,2]
[361085563,1747242647345,-999.73,0.00010958,2]
[361085564,1747242647354,-2260.98,0.00010958,2]
[361085565,1747242647363,-1369.1,0.00010958,2]
[361085566,1747242647372,-1359.73,0.00010958,2]
[361085567,1747242647381,-1245.51,0.00010958,2]
[361085568,1747242647390,-760.26,0.00010958,2]
[361085569,1747242647403,-400.0,0.00010958,2]
[361085570,1747242647412,-415.1250916,0.00010958,2]
[361085571,1747242647422,-400.0,0.00010958,2]
[361085572,1747242647431,-216.82423438,0.00010958,2]
[361085573,1747242647440,-400.0,0.00010958,2]
[361085574,1747242647449,-957.12,0.00010958,2]
[361085575,1747242647458,-1055.82,0.00010958,2]
[361085576,1747242647467,-400.0,0.00010958,2]
[361085577,1747242647476,-400.0,0.00010958,2]
[361085578,1747242647488,-1566.25,0.00010958,2]
[361085579,1747242647497,-1008.99,0.00010958,2]
[361085580,1747242647506,-454.77,0.00010958,2]
[361085581,1747242647515,-1665.4,0.00010958,2]
[361085582,1747242647524,-1176.74,0.00010958,2]
[361085583,1747242647534,-400.0,0.00010958,2]
[361085584,1747242647543,-588.25,0.00010958,2]
[361085585,1747242647552,-1669.59,0.00010958,2]
[361085586,1747242647562,-658.77,0.00010958,2]
[361085587,1747242647572,-400.0,0.00010958,2]
[361085588,1747242647582,-512.04,0.00010958,2]
[361085589,1747242647591,-11521.34,0.00010958,2]
[361085590,1747242647601,-400.0,0.00010958,2]
[361085591,1747242647845,-400.0,0.00010958,2]
[361085592,1747242647859,-400.0,0.00010958,2]
[361085593,1747242647869,-400.0,0.00010958,2]
[361085594,1747242647878,-1350.64,0.00010958,2]
[361085595,1747242647888,-919.95,0.00010958,2]
[361085596,1747242647897,-400.0,0.00010958,2]
[361085597,1747242647907,-400.0,0.00010958,2]
[361085598,1747242647918,-400.0,0.00010958,2]
[361085599,1747242647930,-400.0,0.00010958,2]
[361085600,1747242647939,-400.0,0.00010958,2]
[361085601,1747242647949,-400.0,0.00010958,2]
[361085602,1747242647958,-486.73,0.00010958,2]
[361085603,1747242647968,-9085.13,0.00010958,2]
[361085604,1747242647979,-400.0,0.00010958,2]
[361085605,1747242647988,-400.0,0.00010958,2]
[361085606,1747242647998,-536.2,0.00010958,2]
[361085607,1747242648007,-483.38,0.00010958,2]
[361085608,1747242648017,-400.0,0.00010958,2]
[361085609,1747242648026,-372.87979291,0.00010958,2]
[361085610,1747242648036,-400.0,0.00010958,2]
[361085611,1747242648046,-60.72147606,0.00010958,2]
[361085612,1747242648078,-2291.86852394,0.00010958,2]
[361085613,1747242648088,-400.0,0.00010958,2]
[361085614,1747242648098,-400.0,0.00010958,2]
[361085615,1747242648108,-172.09960778,0.00010958,2]
[361085616,1747242716615,150.0,0.00025,60]
[361085618,1747243185687,150.0,0.00010095,7]
[361085619,1747243456143,583.67,8.219e-05,2]
[361085620,1747243478178,150.0,0.000135,5]
[361085621,1747243594092,285.703402,0.000135,5]
[361085654,1747243831376,-450.0,0.0001,2]
[361085656,1747243831386,-189.26964301,0.00010016,2]
[361085657,1747243831395,-200.0,0.00010028,2]
[361085658,1747243831406,-182.76,0.00010039,2]
[361085659,1747243831415,-150.72,0.0001004,2]
[361085660,1747243831425,-27.46216215,0.0001006,2]
[361085661,1747243831755,-172.53783785,0.0001006,2]
[361085662,1747243831764,-427.08,0.00010075,2]
[361085663,1747243831774,-257.96,0.00010075,2]
[361085664,1747243831784,-250.0,0.00010075,2]
[361085665,1747243831794,-1000.0,0.00010095,2]
[361085666,1747243831803,-207.98,0.00010116,2]
[361085667,1747243831813,-583.67,0.00010481,2]
[361085668,1747243831824,-1200.0,0.00010857,2]
[361085669,1747243831833,-629.71614447,0.00010858,2]
[361085670,1747243831843,-1116.4952,0.00010858,2]
[361085671,1747243831853,-262.8791,0.00010858,2]
[361085672,1747243831869,-4579.3117,0.00010858,2]
[361085673,1747243831879,-200.0,0.000109,2]
[361085674,1747243831891,-151.0,0.00010951,2]
[361085675,1747243831904,-1439.04716418,0.00010951,2]
[361085676,1747243831915,-151.0,0.00010951,2]
[361085677,1747243831925,-668.65185757,0.00010951,2]
[361085678,1747243831936,-151.0,0.00010951,2]
[361085679,1747243831945,-207.4,0.00010951,2]
[361085680,1747243831955,-250.0,0.00010958,2]
[361085681,1747243831966,-1481.90057829,0.00010958,2]
[361085682,1747243831978,-576.61942171,0.00010958,2]
[361085683,1747243831987,-400.0,0.00010958,2]
[361085684,1747243831997,-398.0,0.00010958,2]
[361085685,1747243832007,-400.0,0.00010958,2]
[361085686,1747243832017,-385.939136,0.00010958,2]
[361085687,1747243832027,-400.0,0.00010958,2]
[361085688,1747243832037,-400.0,0.00010958,2]
[361085689,1747243832047,-400.0,0.00010958,2]
[361085690,1747243832056,-400.0,0.00010958,2]
[361085691,1747243832066,-400.0,0.00010958,2]
[361085692,1747243832075,-400.0,0.00010958,2]
[361085693,1747243832085,-400.0,0.00010958,2]
[361085694,1747243832094,-400.0,0.00010958,2]
[361085695,1747243832103,-400.0,0.00010958,2]
[361085696,1747243832112,-400.0,0.00010958,2]
[361085697,1747243832122,-205.15620212,0.00010958,2]
[361085698,1747243832132,-400.0,0.00010958,2]
[361085699,1747243832142,-400.0,0.00010958,2]
[361085701,1747243832154,-400.0,0.00010958,2]
[361085703,1747243832165,-210.30173356,0.00010958,2]
[361085705,1747243832174,-400.0,0.00010958,2]
[361085707,1747243832183,-400.0,0.00010958,2]
[361085708,1747243832193,-400.0,0.00010958,2]
[361085710,1747243832202,-400.0,0.00010958,2]
[361085712,1747243832212,-250.0,0.00010958,2]
[361085714,1747243832221,-400.0,0.00010958,2]
[361085716,1747243832231,-400.0,0.00010958,2]
[361085718,1747243832240,-400.0,0.00010958,2]
[361085720,1747243832249,-400.0,0.00010958,2]
[361085722,1747243832259,-400.0,0.00010958,2]
[361085724,1747243832268,-400.0,0.00010958,2]
[361085726,1747243832277,-400.0,0.00010958,2]
[361085728,1747243832287,-400.0,0.00010958,2]
[361085730,1747243832296,-400.0,0.00010958,2]
[361085732,1747243832306,-400.0,0.00010958,2]
[361085734,1747243832316,-400.0,0.00010958,2]
[361085737,1747243832325,-408.1,0.00010958,2]
[361085740,1747243832334,-400.0,0.00010958,2]
[361085743,1747243832343,-400.0,0.00010958,2]
[361085746,1747243832353,-400.0,0.00010958,2]
[361085749,1747243832362,-400.0,0.00010958,2]
[361085752,1747243832374,-400.0,0.00010958,2]
[361085755,1747243832383,-400.0,0.00010958,2]
[361085758,1747243832392,-410.63676288,0.00010958,2]
[361085761,1747243832404,-256.48468514,0.00010958,2]
[361085764,1747243832413,-408.76,0.00010958,2]
[361085767,1747243832423,-400.0,0.00010958,2]
[361085770,1747243832432,-150.0,0.00010958,2]
[361085773,1747243832441,-542.72430043,0.00010958,2]
[361085776,1747243832450,-400.0,0.00010958,2]
[361085779,1747243832459,-400.0,0.00010958,2]
[361085782,1747243832469,-154.67380853,0.00010958,2]
[361085784,1747243832478,-400.0,0.00010958,2]
[361085786,1747243832487,-400.0,0.00010958,2]
[361085789,1747243832496,-400.0,0.00010958,2]
[361085792,1747243832505,-400.0,0.00010958,2]
[361085795,1747243832515,-422.55444488,0.00010958,2]
[361085798,1747243832524,-400.0,0.00010958,2]
[361085801,1747243832534,-400.0,0.00010958,2]
[361085804,1747243832543,-400.0,0.00010958,2]
[361085807,1747243832553,-439.22445243,0.00010958,2]
[361085811,1747243832562,-400.0,0.00010958,2]
[361085813,1747243832571,-400.0,0.00010958,2]
[361085816,1747243832581,-400.0,0.00010958,2]
[361085819,1747243832590,-648.49,0.00010958,2]
[361085822,1747243832600,-400.0,0.00010958,2]
[361085824,1747243832609,-400.0,0.00010958,2]
[361085826,1747243832620,-400.0,0.00010958,2]
[361085828,1747243832630,-404.57141626,0.00010958,2]
[361085830,1747243832639,-400.0,0.00010958,2]
[361085832,1747243832649,-405.66997257,0.00010958,2]
[361085834,1747243832661,-400.0,0.00010958,2]
[361085836,1747243832671,-300.71898,0.00010958,2]
[361085838,1747243832680,-405.48272432,0.00010958,2]
[361085840,1747243832690,-400.0,0.00010958,2]
[361085842,1747243832699,-350.33513894,0.00010958,2]
[361085869,1747243837656,-49.66486106,0.00010958,2]
[361085870,1747243837670,-433.45,0.00010958,2]
[361085871,1747243837680,-400.0,0.00010958,2]
[361085872,1747243837690,-400.0,0.00010958,2]
[361085873,1747243837699,-588.31,0.00010958,2]
[361085874,1747243837708,-400.0,0.00010958,2]
[361085875,1747243837718,-401.09,0.00010958,2]
[361085876,1747243837728,-569.17,0.00010958,2]
[361085877,1747243837738,-217.7492182,0.00010958,2]
[361085878,1747243837780,-182.2507818,0.00010958,2]
[361085879,1747243837789,-400.0,0.00010958,2]
[361085880,1747243837798,-278.5434775,0.00010958,2]
[361085881,1747243837810,-121.4565225,0.00010958,2]
[361085882,1747243837820,-140.64847752,0.00010958,2]
[361085883,1747243837832,-259.35152248,0.00010958,2]
[361085884,1747243837841,-400.0,0.00010958,2]
[361085885,1747243837850,-400.0,0.00010958,2]
[361085886,1747243837865,-949.54,0.00010958,2]
[361085887,1747243837875,-485.38,0.00010958,2]
[361085888,1747243837884,-400.0,0.00010958,2]
[361085889,1747243837894,-400.0,0.00010958,2]
[361085890,1747243837905,-400.0,0.00010958,2]
[361085891,1747243837917,-400.0,0.00010958,2]
[361085892,1747243837926,-420.21,0.00010958,2]
[361085894,1747243837934,-400.0,0.00010958,2]
[361085896,1747243837944,-400.0,0.00010958,2]
[361085897,1747243837955,-347.03909306,0.00010958,2]
[361085898,1747243837965,-601.89,0.00010958,2]
[361085899,1747243837975,-400.0,0.00010958,2]
[361085900,1747243837985,-442.84,0.00010958,2]
[361085901,1747243837995,-522.29,0.00010958,2]
[361085902,1747243838005,-1525.35938446,0.00010958,2]
[361085903,1747243838018,-776.34423163,0.00010958,2]
[361085904,1747243838036,-1436.63638391,0.00010958,2]
[361085905,1747243838045,-400.0,0.00010958,2]
[361085906,1747243838055,-400.0,0.00010958,2]
[361085907,1747243838065,-400.0,0.00010958,2]
[361085908,1747243838074,-852.52,0.00010958,2]
[361085909,1747243838083,-462.06,0.00010958,2]
[361085910,1747243838092,-192.53,0.00010958,2]
[361085911,1747243838102,-503.28,0.00010958,2]
[361085912,1747243838112,-400.0,0.00010958,2]
[361085913,1747243838122,-400.0,0.00010958,2]
[361085914,1747243838132,-408.4,0.00010958,2]
[361085915,1747243838142,-400.0,0.00010958,2]
[361085916,1747243838152,-400.0,0.00010958,2]
[361085917,1747243838163,-400.0,0.00010958,2]
[361085918,1747243838172,-82.05403664,0.00010958,2]
[361085919,1747243838184,-825.70596336,0.00010958,2]
[361085920,1747243838194,-400.0,0.00010958,2]
[361085921,1747243838203,-400.0,0.00010958,2]
[361085922,1747243838212,-430.69403664,0.00010958,2]
[361085923,1747243838224,-30.06413568,0.00010958,2]
[361085924,1747243838233,-400.0,0.00010958,2]
[361085925,1747243838243,-400.0,0.00010958,2]
[361085926,1747243838253,-400.0,0.00010958,2]
[361085927,1747243838263,-400.0,0.00010958,2]
[361085928,1747243838274,-596.66,0.00010958,2]
[361085929,1747243838283,-400.0,0.00010958,2]
[361085930,1747243838293,-480.96,0.00010958,2]
[361085931,1747243838302,-521.00836417,0.00010958,2]
[361085932,1747243838312,-856.52,0.00010958,2]
[361085933,1747243838322,-401.03085462,0.00010958,2]
[361085934,1747243838332,-2527.16,0.00010958,2]
[361085935,1747243838341,-400.0,0.00010958,2]
[361085936,1747243838351,-400.0,0.00010958,2]
[361085937,1747243838361,-1795.29,0.00010958,2]
[361085938,1747243838370,-400.0,0.00010958,2]
[361085939,1747243838380,-400.0,0.00010958,2]
[361085940,1747243838390,-400.0,0.00010958,2]
[361085941,1747243838399,-898.64,0.00010958,2]
[361085942,1747243838409,-403.38852268,0.00010958,2]
[361085943,1747243838421,-400.0,0.00010958,2]
[361085944,1747243838431,-400.0,0.00010958,2]
[361085945,1747243838441,-600.88,0.00010958,2]
[361085946,1747243838450,-405.71931677,0.00010958,2]
[361085947,1747243838460,-400.0,0.00010958,2]
[361085948,1747243838470,-400.0,0.00010958,2]
[361085949,1747243838481,-466.45,0.00010958,2]
[361085950,1747243838491,-400.0,0.00010958,2]
[361085951,1747243838502,-162.15912802,0.00010958,2]
[361085952,1747243838512,-400.0,0.00010958,2]
[361085953,1747243838521,-438.43,0.00010958,2]
[361085954,1747243838532,-403.28336099,0.00010958,2]
[361085955,1747243838543,-400.0,0.00010958,2]
[361085956,1747243838553,-400.0,0.00010958,2]
[361085957,1747243838564,-400.0,0.00010958,2]
[361085958,1747243838574,-400.0,0.00010958,2]
[361085959,1747243838583,-400.0,0.00010958,2]
[361085960,1747243838593,-404.34923082,0.00010958,2]
[361085961,1747243838602,-400.0,0.00010958,2]
[361085962,1747243838613,-409.15801341,0.00010958,2]
[361085963,1747243838622,-400.0,0.00010958,2]
[361085964,1747243838631,-400.0,0.00010958,2]
[361085965,1747243838641,-400.0,0.00010958,2]
[361085966,1747243838651,-467.47,0.00010958,2]
[361085967,1747243838663,-400.0,0.00010958,2]
[361085968,1747243838672,-400.0,0.00010958,2]
[361085969,1747243838682,-462.14088801,0.00010958,2]
[361085970,1747243838691,-400.0,0.00010958,2]
[361085971,1747243838700,-400.0,0.00010958,2]
[361085972,1747243838709,-573.01,0.00010958,2]
[361085973,1747243838719,-400.0,0.00010958,2]
[361085974,1747243838728,-400.0,0.00010958,2]
[361085975,1747243838738,-400.0,0.00010958,2]
[361085976,1747243838747,-456.46,0.00010958,2]
[361085977,1747243838756,-400.0,0.00010958,2]
[361085978,1747243838766,-400.0,0.00010958,2]
[361085979,1747243838775,-430.43,0.00010958,2]
[361085980,1747243838784,-400.0,0.00010958,2]
[361085981,1747243838793,-400.0,0.00010958,2]
[361085982,1747243838803,-400.0,0.00010958,2]
[361085983,1747243838813,-762.98,0.00010958,2]
[361085984,1747243838823,-400.0,0.00010958,2]
[361085985,1747243838833,-400.0,0.00010958,2]
[361085986,1747243838842,-400.0,0.00010958,2]
[361085987,1747243838852,-432.71,0.00010958,2]
[361085988,1747243838868,-400.0,0.00010958,2]
[361085989,1747243838878,-646.35,0.00010958,2]
[361085990,1747243838887,-400.0,0.00010958,2]
[361085991,1747243838897,-550.46,0.00010958,2]
[361085992,1747243838906,-400.0,0.00010958,2]
[361085993,1747243838920,-400.0,0.00010958,2]
[361085994,1747243838930,-400.0,0.00010958,2]
[361085995,1747243838941,-400.0,0.00010958,2]
[361085996,1747243838952,-400.0,0.00010958,2]
[361085997,1747243838962,-400.0,0.00010958,2]
[361085998,1747243838972,-572.84,0.00010958,2]
[361085999,1747243838981,-400.0,0.00010958,2]
[361086000,1747243838990,-400.0,0.00010958,2]
[361086001,1747243839000,-400.0,0.00010958,2]
[361086002,1747243839009,-400.0,0.00010958,2]
[361086003,1747243839019,-642.41,0.00010958,2]
[361086004,1747243839029,-400.0,0.00010958,2]
[361086005,1747243839038,-400.0,0.00010958,2]
[361086006,1747243839049,-400.0,0.00010958,2]
[361086007,1747243839058,-546.35,0.00010958,2]
[361086008,1747243839068,-400.0,0.00010958,2]
[361086009,1747243839077,-400.0,0.00010958,2]
[361086010,1747243839087,-500.0,0.00010958,2]
[361086011,1747243839096,-400.0,0.00010958,2]
[361086012,1747243839106,-400.0,0.00010958,2]
[361086013,1747243839117,-402.54369734,0.00010958,2]
[361086014,1747243839126,-531.4,0.00010958,2]
[361086015,1747243839136,-500.0,0.00010958,2]
[361086016,1747243839147,-513.73,0.00010958,2]
[361086017,1747243839156,-528.05,0.00010958,2]
[361086018,1747243839168,-400.0,0.00010958,2]
[361086019,1747243839177,-400.0,0.00010958,2]
[361086021,1747243839187,-565.23,0.00010958,2]
[361086023,1747243839196,-579.16,0.00010958,2]
[361086025,1747243839205,-400.0,0.00010958,2]
[361086026,1747243839214,-458.88,0.00010958,2]
[361086027,1747243839224,-400.0,0.00010958,2]
[361086028,1747243839235,-400.0,0.00010958,2]
[361086030,1747243839244,-1188.79,0.00010958,2]
[361086031,1747243839254,-777.62790411,0.00010958,2]
[361086032,1747243839276,-228.12209589,0.00010958,2]
[361086033,1747243839285,-287.67790411,0.00010958,2]
[361086035,1747243839783,-112.32209589,0.00010958,2]
[361086036,1747243839793,-400.0,0.00010958,2]
[361086037,1747243839803,-606.99,0.00010958,2]
[361086038,1747243839812,-400.0,0.00010958,2]
[361086039,1747243839822,-138.36790411,0.00010958,2]
[361086040,1747243839873,-500.0,0.00010857,2]
[361086041,1747243839883,-366.86209589,0.00010958,2]
[361086042,1747243839894,-476.04,0.00010958,2]
[361086043,1747243839907,-989.02,0.00010958,2]
[361086044,1747243839922,-415.31,0.00010958,2]
[361086045,1747243839932,-400.0,0.00010958,2]
[361086046,1747243839944,-400.0,0.00010958,2]
[361086047,1747243839955,-400.0,0.00010958,2]
[361086048,1747243839964,-113.63817936,0.00010958,2]
[361086049,1747243840005,-500.0,0.00010857,2]
[361086050,1747243840015,-242.09570601,0.00010857,2]
[361086051,1747243840024,-572.56182064,0.00010958,2]
[361086052,1747243840034,-400.0,0.00010958,2]
[361086053,1747243840044,-403.74097589,0.00010958,2]
[361086054,1747243840054,-400.0,0.00010958,2]
[361086055,1747243840064,-723.11,0.00010958,2]
[361086056,1747243840074,-400.0,0.00010958,2]
[361086057,1747243840083,-400.0,0.00010958,2]
[361086058,1747243840093,-525.47,0.00010958,2]
[361086059,1747243840103,-400.0,0.00010958,2]
[361086060,1747243840112,-1227.07,0.00010958,2]
[361086061,1747243840122,-400.0,0.00010958,2]
[361086062,1747243840132,-501.43930211,0.00010958,2]
[361086063,1747243840142,-400.0,0.00010958,2]
[361086064,1747243840151,-400.0,0.00010958,2]
[361086065,1747243840165,-406.336877,0.00010958,2]
[361086066,1747243840175,-400.0,0.00010958,2]
[361086067,1747243840184,-400.0,0.00010958,2]
[361086068,1747243840194,-565.67,0.00010958,2]
[361086069,1747243840203,-400.0,0.00010958,2]
[361086070,1747243840213,-4513.64,0.00010958,2]
[361086071,1747243840222,-400.0,0.00010958,2]
[361086072,1747243840232,-400.0,0.00010958,2]
[361086073,1747243840241,-400.0,0.00010958,2]
[361086074,1747243840251,-400.0,0.00010958,2]
[361086075,1747243840261,-400.0,0.00010958,2]
[361086076,1747243840270,-299.09261185,0.00010958,2]
[361086077,1747243840279,-513.56,0.00010958,2]
[361086078,1747243840289,-400.0,0.00010958,2]
[361086079,1747243840298,-400.0,0.00010958,2]
[361086080,1747243840307,-659.98,0.00010958,2]
[361086081,1747243840317,-405.80103519,0.00010958,2]
[361086082,1747243840326,-400.0,0.00010958,2]
[361086083,1747243840335,-400.0,0.00010958,2]
[361086084,1747243840345,-400.0,0.00010958,2]
[361086085,1747243840354,-400.0,0.00010958,2]
[361086086,1747243840363,-604.52,0.00010958,2]
[361086087,1747243840373,-431.42,0.00010958,2]
[361086088,1747243840387,-400.0,0.00010958,2]
[361086089,1747243840396,-400.0,0.00010958,2]
[361086090,1747243840405,-322.78981293,0.00010958,2]
[361086091,1747243840418,-2882.63800888,0.00010958,2]
[361086092,1747243840431,-1478.73199112,0.00010958,2]
[361086093,1747243840440,-400.0,0.00010958,2]
[361086094,1747243840449,-301.16437233,0.00010958,2]
[361086095,1747243840459,-1312.05,0.00010958,2]
[361086096,1747243840468,-215.4102064,0.00010958,2]
[361086097,1747243840477,-400.0,0.00010958,2]
[361086098,1747243840487,-8547.90343014,0.00010958,2]
[361086099,1747243840503,-2656.18656986,0.00010958,2]
[361086100,1747243840512,-922.31,0.00010958,2]
[361086101,1747243840521,-400.0,0.00010958,2]
[361086102,1747243840530,-892.76,0.00010958,2]
[361086103,1747243840543,-400.0,0.00010958,2]
[361086104,1747243840552,-2166.77,0.00010958,2]
[361086105,1747243840562,-400.0,0.00010958,2]
[361086106,1747243840571,-728.58,0.00010958,2]
[361086107,1747243840580,-165.92539485,0.00010958,2]
[361086108,1747243840590,-400.0,0.00010958,2]
[361086109,1747243840599,-400.0,0.00010958,2]
[361086110,1747243840608,-495.42,0.00010958,2]
[361086111,1747243840618,-1193.62,0.00010958,2]
[361086112,1747243840627,-400.0,0.00010958,2]
[361086113,1747243840637,-2252.6,0.00010958,2]
[361086114,1747243840646,-400.0,0.00010958,2]
[361086115,1747243840656,-400.0,0.00010958,2]
[361086116,1747243840669,-400.0,0.00010958,2]
[361086117,1747243840679,-584.16,0.00010958,2]
[361086118,1747243840688,-604.75,0.00010958,2]
[361086119,1747243840697,-399.561486,0.00010958,2]
[361086120,1747243840706,-400.0,0.00010958,2]
[361086121,1747243840715,-400.0,0.00010958,2]
[361086122,1747243840725,-400.0,0.00010958,2]
[361086123,1747243840735,-400.0,0.00010958,2]
[361086124,1747243840744,-400.0,0.00010958,2]
[361086125,1747243840754,-958.08,0.00010958,2]
[361086126,1747243840764,-1596.0,0.00010958,2]
[361086127,1747243840774,-246.81760356,0.00010958,2]
[361086128,1747243840783,-435.82,0.00010958,2]
[361086129,1747243840792,-299.6586847,0.00010958,2]
[361086130,1747243840802,-445.63,0.00010958,2]
[361086131,1747243840811,-400.0,0.00010958,2]
[361086132,1747243840821,-563.74,0.00010958,2]
[361086133,1747243840830,-917.24,0.00010958,2]
[361086134,1747243840839,-839.69,0.00010958,2]
[361086135,1747243840849,-400.0,0.00010958,2]
[361086136,1747243840859,-11041.28,0.00010958,2]
[361086137,1747243840871,-400.0,0.00010958,2]
[361086138,1747243840881,-1011.83,0.00010958,2]
[361086139,1747243840890,-3169.41,0.00010958,2]
[361086140,1747243840900,-400.0,0.00010958,2]
[361086141,1747243840911,-282.66792699,0.00010958,2]
[361086142,1747243840922,-1127.71,0.00010958,2]
[361086143,1747243840931,-400.0,0.00010958,2]
[361086144,1747243840943,-400.0,0.00010958,2]
[361086145,1747243840952,-1600.02,0.00010958,2]
[361086146,1747243840962,-400.0,0.00010958,2]
[361086147,1747243840972,-1294.36,0.00010958,2]
[361086148,1747243840981,-400.0,0.00010958,2]
[361086149,1747243840991,-629.59,0.00010958,2]
[361086150,1747243841000,-476.65,0.00010958,2]
[361086151,1747243841010,-513.86,0.00010958,2]
[361086152,1747243841019,-8706.58,0.00010958,2]